bitfinex-derivatives/quotes_SOLF0:USTF0_20260116
["timestamp","ask_amount","ask_price","bid_price","bid_amount"]
[1768596350416,4.76974987,144.78,144.71,11.974076]
[1768596350915,10.98894987,144.78,144.71,11.974076]
[1768596356719,4.76974987,144.78,144.67,6.2236]
[1768596357021,11.31267567,144.76,144.62,109.60170227]
[1768596357220,11.31267567,144.76,144.66,1.71241894]
[1768596358017,6.2207,144.75,144.66,7.93661894]
[1768596358617,11.31267567,144.76,144.66,7.93661894]
[1768596358817,11.31267567,144.76,144.67,11.55794558]
[1768596359823,6.2209,144.74,144.67,11.55794558]
[1768596360016,11.31267567,144.76,144.68,13.27036452]
[1768596360213,13.02509461,144.78,144.71,11.55794558]
[1768596360416,6.2194,144.78,144.73,11.55794558]
[1768596362220,6.2196,144.77,144.73,11.55794558]
[1768596362522,6.2196,144.77,144.7,1.71241894]
[1768596362923,6.2196,144.77,144.66,96.8182]
[1768596363121,6.2196,144.77,144.7,1.71241894]
[1768596364423,6.2196,144.77,144.71,11.55794558]
[1768596364624,11.31267567,144.78,144.71,11.55794558]
[1768596365827,6.2205,144.75,144.71,11.55794558]
[1768596370924,6.2205,144.75,144.68,6.2233]
[1768596371129,6.2208,144.74,144.67,7.93543921]
[1768596371831,6.2203,144.76,144.69,1.71183921]
[1768596372632,11.31267567,144.76,144.67,6.2238]
[1768596372932,11.31267567,144.76,144.69,9.84835421]
[1768596373824,6.2208,144.74,144.69,9.84835421]
[1768596374232,11.31267567,144.76,144.69,9.84835421]
[1768596375035,6.2204,144.75,144.69,9.84835421]
[1768596378034,17.53257567,144.77,144.7,10.30872632]
[1768596378734,6.22,144.76,144.7,10.30872632]
[1768596379033,11.31267567,144.77,144.7,10.30872632]
[1768596383330,11.31267567,144.77,144.7,16.53112632]
[1768596386623,1.71183921,144.76,144.7,16.53112632]
[1768596387029,1.71183921,144.76,144.71,6.2221]
[1768596387534,13.46467012,144.76,144.7,6.2225]
[1768596392938,13.46467012,144.76,144.71,6.222]
[1768596401352,11.75283091,144.76,144.71,6.222]
[1768596405155,11.75283091,144.76,144.72,6.2216]
[1768596409758,13.46467012,144.76,144.72,6.2216]
[1768596409959,13.46467012,144.76,144.7,11.88282882]
[1768596410756,13.46467012,144.76,144.72,6.2216]
[1768596414563,11.75283091,144.76,144.72,6.2216]
[1768596419066,11.75283091,144.76,144.7,11.88282882]
[1768596420260,12.5452004,144.74,144.68,13.19527602]
[1768596420465,12.5452004,144.74,144.66,14.90711523]
[1768596420762,6.2215,144.73,144.66,14.90711523]
[1768596421068,12.5452004,144.72,144.65,6.2246]
[1768596421868,12.5452004,144.71,144.65,19.41987602]
[1768596424069,12.5452004,144.71,144.66,6.2242]
[1768596427868,12.5452004,144.71,144.64,1.71183921]
[1768596428069,12.5452004,144.71,144.64,14.90711523]
[1768596428766,12.5452004,144.71,144.65,6.2246]
[1768596429670,12.5452004,144.7,144.64,13.19527602]
[1768596430670,12.5452004,144.7,144.64,19.42027602]
[1768596437979,14.25849356,144.7,144.62,13.19527602]
[1768596438684,12.5452004,144.69,144.63,6.2255]
[1768596441889,14.39531317,144.68,144.63,6.2255]
[1768596442189,16.10860633,144.68,144.63,6.2255]
[1768596446088,16.10860633,144.68,144.6,13.20591881]
[1768596446285,14.39531317,144.67,144.6,13.20591881]
[1768596447793,14.39531317,144.67,144.61,6.226]
[1768596447989,14.39531317,144.67,144.6,13.20591881]
[1768596448890,14.39531317,144.67,144.62,6.2259]
[1768596450191,14.13341692,144.65,144.6,6.2264]
[1768596454997,14.13341692,144.65,144.58,20.85304828]
[1768596455500,14.13341692,144.68,144.6,14.62554828]
[1768596455699,15.84671008,144.71,144.63,14.62554828]
[1768596456002,14.13341692,144.7,144.63,20.85104828]
[1768596456391,14.13341692,144.7,144.63,14.62554828]
[1768596457400,14.13341692,144.7,144.64,20.85064828]
[1768596457899,14.13341692,144.7,144.64,14.62554828]
[1768596459300,20.35511692,144.72,144.64,16.33884144]
[1768596460404,14.13341692,144.71,144.64,16.33884144]
[1768596460903,20.35561692,144.71,144.64,16.33884144]
[1768596462006,20.35561692,144.71,144.64,22.56384144]
[1768596462303,20.35561692,144.71,144.65,14.62554828]
[1768596464006,14.13341692,144.71,144.65,14.62554828]
[1768596464805,15.84671008,144.73,144.66,14.62554828]
[1768596465110,14.13341692,144.73,144.66,14.62554828]
[1768596465802,14.13341692,144.73,144.66,20.84964828]
[1768596469010,14.13341692,144.73,144.67,6.2238]
[1768596471705,14.24323169,144.72,144.65,6.2244]
[1768596473110,14.24323169,144.72,144.66,6.2241]
[1768596473507,14.24323169,144.72,144.67,6.2238]
[1768596474608,14.24323169,144.72,144.66,14.35604863]
[1768596475211,14.24323169,144.72,144.68,6.2233]
[1768596477014,14.24323169,144.72,144.66,20.58004863]
[1768596479917,14.24323169,144.72,144.66,14.35604863]
[1768596482018,14.24323169,144.72,144.64,16.06934179]
[1768596482913,20.46493169,144.72,144.64,14.35604863]
[1768596483117,14.24323169,144.71,144.64,14.35604863]
[1768596483411,1.71329316,144.68,144.62,14.35604863]
[1768596483617,15.95652485,144.68,144.62,14.35604863]
[1768596483817,14.24323169,144.7,144.62,16.06934179]
[1768596484909,14.24323169,144.7,144.63,14.35604863]
[1768596485720,20.46583169,144.7,144.63,14.35604863]
[1768596488222,6.2231,144.69,144.63,14.35604863]
[1768596489720,14.24323169,144.72,144.64,14.35604863]
[1768596490220,14.24323169,144.72,144.64,16.06934179]
[1768596490519,6.2225,144.7,144.64,22.29434179]
[1768596490720,15.95652485,144.74,144.65,14.35604863]
[1768596490924,14.24323169,144.74,144.67,14.35604863]
[1768596492826,6.2213,144.73,144.67,14.35604863]
[1768596493025,14.24323169,144.74,144.67,14.35604863]
[1768596495618,6.2208,144.75,144.68,14.35604863]
[1768596495820,20.46403169,144.75,144.68,14.35604863]
[1768596499424,20.46403169,144.75,144.68,20.57934863]
[1768596499724,14.24323169,144.75,144.68,20.57934863]
[1768596501528,12.4356,144.82,144.66,21.71489877]
[1768596501529,16.91576697,144.74,144.66,21.71489877]
[1768596501725,16.91576697,144.74,144.66,15.49089877]
[1768596502127,16.91576697,144.72,144.66,15.49089877]
[1768596502928,16.91576697,144.72,144.66,21.71499877]
[1768596505731,15.20346315,144.72,144.66,21.71499877]
[1768596510033,21.42516315,144.72,144.66,15.49089877]
[1768596510932,15.20346315,144.72,144.66,15.49089877]
[1768596513237,15.20346315,144.72,144.66,21.71509877]
[1768596515438,14.44591201,144.71,144.64,21.3613026]
[1768596516338,14.44591201,144.71,144.65,6.2246]
[1768596516637,16.15821583,144.73,144.65,15.1366026]
[1768596517337,14.44591201,144.72,144.65,15.1366026]
[1768596518934,14.44591201,144.72,144.66,6.2242]
[1768596522340,14.44591201,144.72,144.65,15.1366026]
[1768596522341,14.44591201,144.72,144.67,6.2238]
[1768596525842,14.44591201,144.72,144.65,21.3609026]
[1768596529744,14.44591201,144.72,144.66,6.2242]
[1768596531045,14.44591201,144.71,144.66,6.2242]
[1768596533543,14.44591201,144.71,144.67,6.2237]
[1768596534052,6.2208,144.75,144.67,15.51283445]
[1768596534242,15.20303591,144.76,144.67,15.51283445]
[1768596535150,15.20303591,144.75,144.69,6.2225]
[1768596535454,15.20303591,144.75,144.67,15.51283445]
[1768596535855,15.20303591,144.75,144.7,6.2225]
[1768596545055,15.20303591,144.75,144.68,17.22513827]
[1768596547362,15.20303591,144.77,144.72,17.22513827]
[1768596547548,15.20303591,144.8,144.72,17.22513827]
[1768596548256,15.20303591,144.79,144.72,17.22513827]
[1768596550158,21.42173591,144.79,144.72,17.22513827]
[1768596551557,6.2191,144.78,144.72,17.22513827]
[1768596552661,21.42213591,144.78,144.72,17.22513827]
[1768596553155,21.42213591,144.78,144.72,15.51283445]
[1768596554459,21.42213591,144.78,144.7,15.51283445]
[1768596554460,15.20303591,144.78,144.7,15.51283445]
[1768596555764,6.22,144.76,144.7,15.51283445]
[1768596556859,15.20303591,144.75,144.68,15.51283445]
[1768596559267,15.20303591,144.75,144.69,15.51283445]
[1768596562266,15.20303591,144.75,144.69,21.73563445]
[1768596567567,15.20303591,144.75,144.7,15.87896158]
[1768596568572,15.20303591,144.75,144.7,22.10146158]
[1768596571472,281.99,144.81,144.66,14.64312229]
[1768596571473,17.61645046,144.74,144.66,14.64312229]
[1768596572774,17.61645046,144.74,144.67,20.86672229]
[1768596573876,17.61645046,144.74,144.67,6.2236]
[1768596576871,17.61645046,144.74,144.66,14.64312229]
[1768596579375,17.61645046,144.74,144.64,197.41898219]
[1768596579376,17.61645046,144.74,144.64,212.06210448]
[1768596579576,23.83735046,144.74,144.64,212.06210448]
[1768596579773,15.90519797,144.73,144.65,14.64312229]
[1768596582878,15.90519797,144.72,144.65,14.64312229]
[1768596583474,22.12589797,144.75,144.65,14.64312229]
[1768596583679,15.90519797,144.74,144.67,16.35437478]
[1768596584871,15.90519797,144.73,144.67,16.35437478]
[1768596586881,22.12649797,144.73,144.67,16.35437478]
[1768596589986,6.2217,144.72,144.67,16.35437478]
[1768596594294,6.2217,144.72,144.67,14.64312229]
[1768596594990,15.48527682,144.71,144.66,1.71125249]
[1768596595601,15.48527682,144.71,144.66,16.72891146]
[1768596596897,15.48527682,144.71,144.66,22.95311146]
[1768596597295,15.48527682,144.74,144.66,22.95311146]
[1768596598196,15.48527682,144.73,144.66,22.95311146]
[1768596598899,15.48527682,144.72,144.66,15.01765897]
[1768596600299,1.71125249,144.76,144.68,15.01765897]
[1768596600800,1.71125249,144.74,144.63,16.72891146]
[1768596601104,1.71125249,144.72,144.65,15.01765897]
[1768596601404,1.71125249,144.8,144.69,15.01765897]
[1768596601602,1.71125249,144.78,144.69,15.01765897]
[1768596601904,1.71125249,144.78,144.7,1.71125249]
[1768596602202,15.48527682,144.76,144.69,16.72891146]
[1768596603400,15.48527682,144.74,144.67,21.24105897]
[1768596603709,15.48527682,144.74,144.67,15.01765897]
[1768596604006,15.48527682,144.74,144.69,6.2229]
[1768596604399,15.48527682,144.74,144.7,1.71125249]
[1768596604808,261.3,144.76,144.7,7.93345249]
[1768596604809,15.48527682,144.76,144.7,7.93345249]
[1768596606812,15.48527682,144.76,144.69,1.71125249]
[1768596607807,15.48527682,144.75,144.69,7.93415249]
[1768596608608,276.76527682,144.75,144.7,1.71125249]
[1768596609902,276.76527682,144.75,144.69,22.95181146]
[1768596610709,276.76527682,144.75,144.69,21.24055897]
[1768596610910,276.76527682,144.75,144.69,22.95181146]
[1768596613007,276.76527682,144.75,144.69,16.72891146]
[1768596613515,276.76527682,144.75,144.69,15.01765897]
[1768596614315,276.76527682,144.74,144.68,1.71190976]
[1768596614511,276.76527682,144.74,144.67,21.24135897]
[1768596615013,15.48527682,144.74,144.67,21.24135897]
[1768596615412,261.28,144.73,144.67,21.24135897]
[1768596615617,261.28,144.73,144.68,15.01765897]
[1768596616612,261.28,144.73,144.68,16.72956873]
[1768596617914,261.28,144.72,144.68,16.72956873]
[1768596621317,261.28,144.72,144.68,15.01765897]
[1768596621517,6.2213,144.73,144.68,15.01765897]
[1768596621716,261.28,144.72,144.68,15.01765897]
[1768596623816,6.2213,144.73,144.68,15.01765897]
[1768596624017,261.28,144.72,144.68,15.01765897]
[1768596624816,6.2213,144.73,144.68,15.01765897]
[1768596625016,261.28,144.72,144.68,15.01765897]
[1768596625418,261.28,144.71,144.68,15.01765897]
[1768596626522,6.2213,144.73,144.68,15.01765897]
[1768596626824,6.2209,144.74,144.68,15.01765897]
[1768596627022,261.28,144.73,144.68,15.01765897]
[1768596627321,261.28,144.72,144.68,15.01765897]
[1768596627923,261.28,144.72,144.68,21.24095897]
[1768596630424,6.2204,144.75,144.7,16.41376837]
[1768596630926,261.28,144.74,144.7,16.41376837]
[1768596631222,6.2204,144.75,144.7,16.41376837]
[1768596631725,261.28,144.74,144.7,16.41376837]
[1768596631928,15.73014824,144.76,144.7,16.41376837]
[1768596632129,261.28,144.73,144.7,16.41376837]
[1768596633430,15.45588407,144.75,144.7,16.41376837]
[1768596633628,261.26,144.73,144.7,16.41376837]
[1768596633831,15.45588407,144.75,144.7,16.41376837]
[1768596634030,261.26,144.74,144.7,16.41376837]
[1768596635626,261.26,144.73,144.7,16.41376837]
[1768596635822,219.79105784,144.73,144.7,16.41376837]
[1768596637025,219.79105784,144.73,144.7,22.63616837]
[1768596637937,15.45588407,144.75,144.71,6.2221]
[1768596638137,261.26,144.74,144.71,6.2221]
[1768596640243,17.16779383,144.77,144.71,22.63586837]
[1768596640536,261.26,144.76,144.71,22.63586837]
[1768596641034,276.71588407,144.76,144.71,6.2221]
[1768596641240,15.45588407,144.75,144.71,6.2221]
[1768596643939,17.16779383,144.77,144.71,6.2221]
[1768596644444,261.24,144.76,144.71,6.2221]
[1768596644742,276.69588407,144.76,144.71,6.2221]
[1768596645546,261.24,144.75,144.71,6.2221]
[1768596648149,15.45588407,144.74,144.68,16.41376837]
[1768596648941,15.45588407,144.74,144.71,6.222]
[1768596650144,5.04778407,144.74,144.71,6.222]
[1768596650751,266.28778407,144.74,144.71,6.222]
[1768596650948,261.24,144.74,144.71,6.222]
[1768596651153,221.96818407,144.74,144.71,6.222]
[1768596651453,201.08618407,144.74,144.71,6.222]
[1768596651654,169.76318407,144.74,144.71,6.222]
[1768596652455,162.74173848,144.74,144.71,6.222]
[1768596653756,18.61041698,144.75,144.71,6.222]
[1768596654055,279.85041698,144.75,144.71,6.222]
[1768596655260,6.2182,144.8,144.71,16.49345924]
[1768596655562,1.71190976,144.78,144.71,16.49345924]
[1768596656752,1.71190976,144.78,144.73,6.2212]
[1768596656953,261.24,144.77,144.73,6.2212]
[1768596657457,268.42937502,144.77,144.73,6.2212]
[1768596658255,7.18937502,144.77,144.73,6.2212]
[1768596658557,261.24,144.76,144.73,6.2212]
[1768596661566,250.8223,144.76,144.73,6.2212]
[1768596661760,240.037,144.76,144.73,6.2212]
[1768596662355,229.6151,144.76,144.73,6.2212]
[1768596662555,8.90128478,144.77,144.73,6.2212]
[1768596662761,250.7323,144.76,144.73,6.2212]
[1768596664066,8.90128478,144.77,144.73,6.2212]
[1768596664362,270.12128478,144.77,144.73,6.2212]
[1768596665164,268.40937502,144.77,144.73,6.2212]
[1768596665872,268.40937502,144.77,144.71,22.71535924]
[1768596666470,7.18937502,144.77,144.71,22.71535924]
[1768596666672,268.40937502,144.77,144.71,22.71535924]
[1768596667076,9.46581178,144.76,144.7,6.2225]
[1768596667873,9.46581178,144.76,144.7,22.71595924]
[1768596671673,7.75390202,144.76,144.7,22.71595924]
[1768596671874,9.46581178,144.76,144.7,16.49345924]
[1768596672379,9.46581178,144.76,144.69,12.76638692]
[1768596672573,9.46581178,144.76,144.68,22.71645924]
[1768596673178,9.46581178,144.76,144.68,35.48284616]
[1768596673375,9.46579376,144.76,144.68,35.48284616]
[1768596673875,8.06239242,144.75,144.68,35.48284616]
[1768596674072,8.06239242,144.75,144.69,16.49345924]
[1768596675571,14.28279242,144.75,144.69,16.49345924]
[1768596676470,8.06239242,144.75,144.7,16.49345924]
[1768596677175,6.22,144.76,144.7,16.49345924]
[1768596677374,14.47644955,144.76,144.7,16.49345924]
[1768596678784,6.22,144.76,144.7,16.49345924]
[1768596679587,14.57016467,144.76,144.7,16.49345924]
[1768596683192,6.2204,144.75,144.7,16.49345924]
[1768596684595,14.84157679,144.77,144.7,16.49345924]
[1768596685183,8.66483106,144.76,144.7,16.49345924]
[1768596687593,269.96947827,144.78,144.7,16.49345924]
[1768596687792,8.74947827,144.78,144.71,16.8529744]
[1768596688790,1.71189174,144.77,144.71,16.8529744]
[1768596690191,10.6293115,144.77,144.71,16.8529744]
[1768596691394,10.6293115,144.77,144.72,17.66154203]
[1768596691395,8.91741976,144.77,144.72,17.66154203]
[1768596691597,10.66886207,144.79,144.72,17.66154203]
[1768596693796,271.88886207,144.79,144.72,17.66154203]
[1768596694004,9.03485292,144.78,144.72,17.66154203]
[1768596694403,9.03485292,144.78,144.71,6.2221]
[1768596694603,9.03485292,144.78,144.71,23.88364203]
[1768596695211,9.03485292,144.78,144.72,6.2216]
[1768596700416,9.03485292,144.78,144.72,23.88314203]
[1768596701610,9.03485292,144.78,144.72,6.2216]
[1768596707724,10.74674466,144.78,144.72,6.2216]
[1768596712722,9.03485292,144.78,144.72,6.2216]
[1768596718920,261.22,144.78,144.72,6.2216]
[1768596719126,9.92793721,144.77,144.72,6.2216]
[1768596721134,11.63982895,144.77,144.71,17.66154203]
[1768596721335,9.98371163,144.74,144.68,18.10413809]
[1768596722541,9.98371163,144.74,144.68,24.32743809]
[1768596725034,9.98371163,144.74,144.68,18.10413809]
[1768596726741,16.20461163,144.74,144.68,18.10413809]
[1768596728239,10.16996296,144.7,144.63,18.10413809]
[1768596728542,11.8818547,144.69,144.63,18.10413809]
[1768596730137,1.71189174,144.68,144.63,18.10413809]
[1768596730834,7.93539174,144.68,144.63,18.10413809]
[1768596731636,10.16996296,144.69,144.63,18.10413809]
[1768596733143,16.39316296,144.69,144.63,18.10413809]
[1768596735246,6.2235,144.68,144.63,18.10413809]
[1768596737341,6.2229,144.7,144.63,18.10413809]
[1768596738342,6.2229,144.7,144.65,18.10413809]
[1768596739043,1.71363166,144.71,144.65,18.10413809]
[1768596742835,7.93573166,144.71,144.65,18.10413809]
[1768596743039,1.71363166,144.71,144.65,18.10413809]
[1768596743943,12.2683698,144.71,144.65,18.10413809]
[1768596744843,18.4906698,144.71,144.65,18.10413809]
[1768596750053,18.4906698,144.71,144.65,24.32873809]
[1768596751150,16.95642421,144.73,144.66,18.52369633]
[1768596751352,10.73482421,144.77,144.69,18.52369633]
[1768596751545,12.44845587,144.79,144.69,20.23732799]
[1768596752253,10.75361562,144.78,144.71,24.74549633]
[1768596753453,12.46724728,144.78,144.71,24.74549633]
[1768596753756,18.68634728,144.78,144.71,24.74549633]
[1768596756058,16.97271562,144.78,144.71,24.74549633]
[1768596756358,18.68634728,144.78,144.71,24.74549633]
[1768596757156,18.68634728,144.78,144.71,18.52369633]
[1768596758262,10.86163273,144.77,144.71,18.52369633]
[1768596758564,17.08123273,144.77,144.71,18.52369633]
[1768596764265,17.18156144,144.79,144.71,20.23732799]
[1768596764569,17.18156144,144.79,144.74,18.52369633]
[1768596764764,10.96286144,144.79,144.74,18.52369633]
[1768596765372,10.97893669,144.81,144.74,18.52369633]
[1768596766878,17.21347652,144.8,144.74,18.52369633]
[1768596769881,6.2188,144.79,144.74,18.52369633]
[1768596771776,6.2181,144.81,144.74,18.52369633]
[1768596771977,11.09009208,144.82,144.76,18.37471543]
[1768596772381,6.2182,144.8,144.76,18.37471543]
[1768596774884,11.09009208,144.82,144.76,18.37471543]
[1768596775884,6.2182,144.8,144.76,18.37471543]
[1768596776881,11.16128371,144.91,144.8,18.37471543]
[1768596777078,107.84462051,144.89,144.82,7.58491543]
[1768596777280,11.17482051,144.89,144.82,7.58491543]
[1768596778178,6.2151,144.88,144.82,7.58491543]
[1768596778387,6.2151,144.88,144.82,9.29854709]
[1768596779280,6.2151,144.88,144.82,7.58491543]
[1768596783095,26.91402465,144.9,144.82,7.58491543]
[1768596783295,18.98609299,144.9,144.82,7.58491543]
[1768596783497,20.69972465,144.9,144.82,7.58491543]
[1768596784496,18.98609299,144.9,144.82,7.58491543]
[1768596784790,6.2144,144.89,144.82,7.58491543]
[1768596792090,6.2153,144.87,144.82,7.58491543]
[1768596792487,25.20139299,144.87,144.76,18.37471543]
[1768596792694,20.69972465,144.86,144.78,18.37471543]
[1768596794892,20.69972465,144.86,144.8,18.37471543]
[1768596796590,18.98609299,144.86,144.8,18.37471543]
[1768596796791,20.69972465,144.86,144.8,18.37471543]
[1768596797296,20.69549652,144.86,144.8,18.37471543]
[1768596799394,1.70940353,144.84,144.78,18.37471543]
[1768596799796,18.98609299,144.85,144.78,18.37471543]
[1768596799998,1.70940353,144.84,144.78,18.37471543]
[1768596800892,1.70940353,144.84,144.79,18.37471543]
[1768596801801,1.70940353,144.84,144.79,24.59321543]
[1768596802002,1.70940353,144.84,144.8,18.81363963]
[1768596802894,18.98609299,144.85,144.8,18.81363963]
[1768596803100,20.69549652,144.85,144.8,18.81363963]
[1768596803703,20.69549652,144.85,144.78,25.03263963]
[1768596803999,21.11157603,144.83,144.78,18.81363963]
[1768596804703,1.70940353,144.81,144.76,18.81363963]
[1768596805901,1.70940353,144.81,144.76,25.03353963]
[1768596810598,21.11157603,144.82,144.76,25.03353963]
[1768596811009,21.11157603,144.82,144.72,357.9787]
[1768596811010,19.4021725,144.82,144.77,25.45769676]
[1768596815108,19.4021725,144.82,144.77,19.23819676]
[1768596818613,25.6195725,144.82,144.77,19.23819676]
[1768596821019,6.2179,144.81,144.77,19.23819676]
[1768596822116,6.2174,144.82,144.77,19.23819676]
[1768596823021,27.46060506,144.83,144.77,19.23819676]
[1768596825921,25.75120153,144.83,144.77,19.23819676]
[1768596826817,25.75170153,144.82,144.77,19.23819676]
[1768596827024,25.75170153,144.82,144.75,19.23819676]
[1768596827515,25.75170153,144.82,144.76,19.23819676]
[1768596829929,19.53430153,144.81,144.76,19.23819676]
[1768596830417,19.53430153,144.8,144.74,19.23819676]
[1768596831821,25.75250153,144.8,144.74,19.23819676]
[1768596832028,19.70015027,144.79,144.74,19.23819676]
[1768596835323,19.70015027,144.79,144.68,357.9486]
[1768596835324,19.70015027,144.79,144.72,19.63186342]
[1768596837031,19.70015027,144.79,144.73,19.63186342]
[1768596837232,25.91885027,144.79,144.73,19.63186342]
[1768596837929,1.70940353,144.8,144.73,25.85306342]
[1768596838131,25.91815027,144.81,144.74,19.63186342]
[1768596840231,25.91835027,144.8,144.74,19.63186342]
[1768596840423,21.4095538,144.8,144.72,19.63186342]
[1768596841831,21.4095538,144.8,144.73,25.85306342]
[1768596842032,21.4095538,144.8,144.73,19.63186342]
[1768596842833,19.70015027,144.79,144.73,19.63186342]
[1768596844334,21.4095538,144.78,144.71,19.63186342]
[1768596845237,6.2196,144.77,144.71,19.63186342]
[1768596845735,19.70015027,144.78,144.71,19.63186342]
[1768596846524,19.70015027,144.78,144.71,21.34126695]
[1768596848929,19.70015027,144.78,144.71,27.56316695]
[1768596849242,19.70015027,144.78,144.71,25.85376342]
[1768596850334,19.70015027,144.8,144.74,19.63186342]
[1768596853939,25.91855027,144.8,144.74,19.63186342]
[1768596854440,19.70015027,144.79,144.74,19.63186342]
[1768596855938,21.4095538,144.79,144.74,19.63186342]
[1768596856930,27.6282538,144.79,144.74,19.63186342]
[1768596859341,25.91885027,144.79,144.74,19.63186342]
[1768596866048,1.71110278,144.76,144.66,12.76638692]
[1768596866244,19.30470039,144.75,144.66,98.53300278]
[1768596867146,1.71110278,144.76,144.66,98.53300278]
[1768596867351,1.71110278,144.76,144.68,1.71110278]
[1768596867846,1.71110278,144.76,144.69,6.2226]
[1768596868051,1.71110278,144.78,144.7,18.6090352]
[1768596868247,19.30470039,144.79,144.7,18.6090352]
[1768596868447,21.01580317,144.78,144.7,18.6090352]
[1768596868647,21.01580317,144.78,144.71,18.6090352]
[1768596870554,21.01580317,144.78,144.71,24.8310352]
[1768596874954,27.23490317,144.78,144.71,24.8310352]
[1768596875263,18.40058302,144.77,144.71,24.8310352]
[1768596877364,18.40058302,144.76,144.71,24.8310352]
[1768596877569,20.74,144.81,144.76,20.10162377]
[1768596877756,20.74,144.81,144.73,20.10162377]
[1768596877757,18.40058302,144.81,144.73,20.10162377]
[1768596878070,20.1116858,144.79,144.73,20.10162377]
[1768596878463,18.40058302,144.79,144.73,20.10162377]
[1768596879767,20.1116858,144.79,144.73,20.10162377]
[1768596880069,18.40058302,144.79,144.73,20.10162377]
[1768596880273,18.40058302,144.79,144.73,26.32282377]
[1768596880964,20.1116858,144.79,144.73,26.32282377]
[1768596881672,18.40058302,144.79,144.73,26.32282377]
[1768596884965,20.1116858,144.79,144.73,26.32282377]
[1768596888073,20.1116858,144.79,144.73,20.10162377]
[1768596888971,18.40058302,144.79,144.73,20.10162377]
[1768596889775,20.1116858,144.81,144.73,20.10162377]
[1768596890366,24.61838302,144.81,144.73,20.10162377]
[1768596893277,6.2183,144.8,144.73,20.10162377]
[1768596893778,20.77034186,144.83,144.75,20.53193692]
[1768596894875,6.2174,144.82,144.75,20.53193692]
[1768596895673,6.2178,144.81,144.76,281.73193692]
[1768596898188,6.2178,144.81,144.77,20.53193692]
[1768596898878,26.98744186,144.83,144.77,20.53193692]
[1768596900185,1.71110278,144.84,144.75,20.53193692]
[1768596900186,20.77034186,144.82,144.75,20.53193692]
[1768596900381,22.48144464,144.82,144.75,261.18]
[1768596901781,6.2183,144.8,144.75,261.18]
[1768596902372,96.7053,144.84,144.75,261.18]
[1768596902373,43.22144464,144.85,144.76,22.2430397]
[1768596902574,20.77034186,144.84,144.76,22.2430397]
[1768596902776,20.77034186,144.84,144.76,20.53193692]
[1768596902989,20.77034186,144.84,144.76,22.2430397]
[1768596903285,20.77034186,144.84,144.76,20.53193692]
[1768596903585,20.77034186,144.84,144.77,22.2430397]
[1768596904483,20.77034186,144.84,144.77,20.53193692]
[1768596904688,6.217,144.83,144.77,22.2430397]
[1768596905380,20.77034186,144.82,144.78,261.16]
[1768596905588,20.77034186,144.82,144.75,20.53193692]
[1768596905785,20.77034186,144.82,144.76,261.16]
[1768596906288,20.77034186,144.82,144.76,281.69193692]
[1768596906981,6.2178,144.81,144.76,281.69193692]
[1768596908080,20.77034186,144.84,144.77,20.53193692]
[1768596908387,257.79435691,144.87,144.77,22.2430397]
[1768596908580,257.79435691,144.87,144.8,20.53193692]
[1768596908780,96.6556,144.91,144.76,261.16]
[1768596908781,96.6556,144.91,144.82,20.53193692]
[1768596908985,20.77034186,144.9,144.82,20.53193692]
[1768596909283,20.77034186,144.9,144.82,22.2430397]
[1768596910086,6.2149,144.88,144.82,20.53193692]
[1768596911482,6.2149,144.88,144.82,22.2430397]
[1768596911891,6.2141,144.9,144.84,20.53193692]
[1768596912291,117.42594186,144.91,144.84,20.53193692]
[1768596913886,6.2146,144.89,144.84,20.53193692]
[1768596915287,6.2146,144.89,144.85,261.1]
[1768596915898,26.98414186,144.91,144.85,281.63193692]
[1768596916284,26.98414186,144.91,144.86,261.1]
[1768596916489,6.214,144.9,144.86,261.1]
[1768596916889,6.214,144.9,144.85,20.53193692]
[1768596917096,6.214,144.9,144.86,261.08]
[1768596917300,22.48144464,144.93,144.86,281.61193692]
[1768596918294,117.41904186,144.92,144.86,250.7085]
[1768596918499,117.41904186,144.92,144.86,228.1568]
[1768596918794,117.41904186,144.92,144.86,195.7829]
[1768596918999,117.41904186,144.92,144.86,174.1663]
[1768596919296,117.41904186,144.92,144.84,20.53193692]
[1768596919297,117.42744186,144.91,144.84,20.53193692]
[1768596919493,119.13854464,144.91,144.85,227.136]
[1768596919698,20.77034186,144.9,144.82,20.53193692]
[1768596919893,6.2147,144.89,144.82,20.53193692]
[1768596920200,6.2147,144.89,144.84,20.53193692]
[1768596921500,6.2137,144.91,144.85,19.7548664]
[1768596921890,6.2137,144.91,144.85,21.46325836]
[1768596923701,6.2137,144.91,144.85,19.7548664]
[1768596924011,6.2137,144.91,144.85,21.46325836]
[1768596924504,6.2137,144.91,144.85,19.7548664]
[1768596925003,6.2141,144.9,144.85,19.7548664]
[1768596925702,6.2141,144.9,144.85,280.7948664]
[1768596925898,22.40857233,144.89,144.74,96.765]